bitfinex-derivatives/quotes_BTCF0:USTF0_20251109
["timestamp","ask_amount","ask_price","bid_price","bid_amount"]
[1762709854724,0.66955884,103810.0,103800.0,0.13923672]
[1762709855717,0.66955884,103810.0,103800.0,0.23559862]
[1762709856324,0.66955884,103810.0,103800.0,0.13923672]
[1762709857519,0.66955884,103810.0,103800.0,0.08134672]
[1762709858126,0.66955884,103810.0,103800.0,0.11012672]
[1762709858326,0.75076067,103810.0,103800.0,0.02892489]
[1762709858630,0.75076067,103810.0,103800.0,0.00014489]
[1762709859023,1.08396067,103810.0,103800.0,0.00014489]
[1762709860832,0.1494912,103790.0,103780.0,0.28430988]
[1762709861028,0.14956556,103790.0,103780.0,0.28431708]
[1762709861219,0.29380072,103790.0,103780.0,0.28431708]
[1762709861620,0.30982072,103790.0,103780.0,0.24965233]
[1762709861921,0.29380072,103790.0,103780.0,0.24965233]
[1762709862127,0.29380072,103790.0,103780.0,0.33085416]
[1762709862720,0.29380072,103790.0,103780.0,0.33185416]
[1762709863325,0.29380072,103790.0,103780.0,0.25065233]
[1762709863936,0.30982072,103790.0,103780.0,0.13659183]
[1762709864130,0.30982072,103790.0,103780.0,0.23297233]
[1762709864324,0.30982072,103790.0,103780.0,0.26763708]
[1762709864529,0.30982072,103790.0,103780.0,0.05539]
[1762709864926,0.75182255,103790.0,103780.0,0.001]
[1762709865133,1.08502255,103790.0,103780.0,0.001]
[1762709871047,0.1575804,103780.0,103770.0,0.00014489]
[1762709871347,0.74328609,103780.0,103770.0,0.00014489]
[1762709871650,0.74328609,103780.0,103770.0,0.04880489]
[1762709872038,0.74328609,103780.0,103770.0,0.02478489]
[1762709872242,0.74328609,103780.0,103770.0,0.02778489]
[1762709873447,0.74328609,103780.0,103770.0,0.00314489]
[1762709873644,0.82448792,103780.0,103770.0,0.00314489]
[1762709875442,0.82448792,103780.0,103770.0,0.00014489]
[1762709875638,0.82648792,103780.0,103770.0,0.00014489]
[1762709879147,0.1496998,103770.0,103760.0,0.1]
[1762709879348,0.92494163,103770.0,103760.0,0.1]
[1762709879553,1.07024517,103770.0,103760.0,0.1]
[1762709880653,1.12260618,103770.0,103760.0,0.1]
[1762709881250,1.12360618,103770.0,103760.0,0.1]
[1762709881646,0.1537091,103760.0,103750.0,0.00021787]
[1762709881846,0.59578692,103760.0,103750.0,0.00021787]
[1762709882053,0.73969633,103760.0,103750.0,0.00021787]
[1762709882349,0.82089816,103760.0,103750.0,0.00021787]
[1762709882752,0.82089816,103760.0,103730.0,0.14495183]
[1762709882753,0.1435777,103740.0,103730.0,0.14495183]
[1762709882957,0.5043777,103740.0,103730.0,0.06375]
[1762709883141,0.64974908,103740.0,103730.0,0.160177]
[1762709883340,0.66339908,103740.0,103730.0,0.06375]
[1762709883755,0.66339908,103740.0,103730.0,0.04864]
[1762709884658,0.66339908,103740.0,103730.0,0.05164]
[1762709885457,0.6634927,103740.0,103730.0,0.003]
[1762709885855,0.148997,103730.0,103720.0,0.00014489]
[1762709886156,0.98851597,103730.0,103720.0,0.00014489]
[1762709888352,0.98851597,103730.0,103720.0,0.00114489]
[1762709888858,0.98314597,103730.0,103720.0,0.26889966]
[1762709889158,0.64982597,103730.0,103720.0,0.26889966]
[1762709891464,0.65523597,103730.0,103720.0,0.06395489]
[1762709892160,0.65523597,103730.0,103720.0,0.04978489]
[1762709893663,0.65523597,103730.0,103720.0,0.02560489]
[1762709894163,0.65523597,103730.0,103720.0,0.04978489]
[1762709895165,0.65523597,103730.0,103720.0,0.14622109]
[1762709896063,0.65523597,103730.0,103720.0,0.16039109]
[1762709896265,0.55339897,103730.0,103720.0,0.16039109]
[1762709896467,0.64982597,103730.0,103720.0,0.16039109]
[1762709899664,0.64982597,103730.0,103720.0,0.06395489]
[1762709900053,0.64982597,103730.0,103720.0,0.16039119]
[1762709902665,0.28902597,103730.0,103720.0,0.16039119]
[1762709902966,0.19259897,103730.0,103720.0,0.26889966]
[1762709903755,0.19259897,103730.0,103720.0,0.62969966]
[1762709903756,0.16996897,103730.0,103720.0,0.62969966]
[1762709904266,0.19259897,103730.0,103720.0,0.62969966]
[1762709905572,0.28902587,103730.0,103720.0,0.62969966]
[1762709906163,0.28902587,103730.0,103720.0,0.66436441]
[1762709908766,0.19259897,103730.0,103720.0,0.66436441]
[1762709908966,0.28902587,103730.0,103720.0,0.66436441]
[1762709909156,0.28902587,103730.0,103720.0,0.66436431]
[1762709909865,0.28902587,103730.0,103720.0,0.30356431]
[1762709912463,0.28902587,103730.0,103720.0,0.30356441]
[1762709913063,0.28902587,103730.0,103720.0,0.35520104]
[1762709914569,0.28902597,103730.0,103720.0,0.68133629]
[1762709916273,0.28902597,103730.0,103720.0,0.35520661]
[1762709916657,0.28902597,103730.0,103720.0,0.71600661]
[1762709919574,0.28902597,103730.0,103720.0,0.35520661]
[1762709923474,0.28902597,103730.0,103720.0,0.32053629]
[1762709924169,0.19259897,103730.0,103720.0,0.32053629]
[1762709924370,0.19259897,103730.0,103720.0,0.35521296]
[1762709924777,0.28902597,103730.0,103720.0,0.35521296]
[1762709924978,0.19259897,103730.0,103720.0,0.35521296]
[1762709925174,0.28902597,103730.0,103720.0,0.35521296]
[1762709930375,0.28902597,103730.0,103720.0,0.32053629]
[1762709930578,0.19259897,103730.0,103720.0,0.32053629]
[1762709931079,0.28902597,103730.0,103720.0,0.32053629]
[1762709935877,0.28902597,103730.0,103720.0,0.26889966]
[1762709937780,0.28902597,103730.0,103720.0,0.33838115]
[1762709939778,0.28902597,103730.0,103720.0,0.24194485]
[1762709939976,0.64982597,103730.0,103720.0,0.24194485]
[1762709940177,0.64982597,103730.0,103720.0,0.22455273]
[1762709940378,0.64982597,103730.0,103720.0,0.32098903]
[1762709940578,0.64982597,103730.0,103720.0,0.33838115]
[1762709940579,0.28902597,103730.0,103720.0,0.33838115]
[1762709941280,0.64982597,103730.0,103720.0,0.32098879]
[1762709942886,0.64982597,103730.0,103720.0,0.37525664]
[1762709944681,0.73662413,103730.0,103720.0,0.07769402]
[1762709944991,0.73662413,103730.0,103720.0,0.08796289]
[1762709945180,0.73662413,103730.0,103720.0,0.05721376]
[1762709945379,0.65523597,103730.0,103720.0,0.16060192]
[1762709945683,0.65523597,103730.0,103720.0,0.26994822]
[1762709945884,0.65523597,103730.0,103720.0,0.18856006]
[1762709946187,0.65523597,103730.0,103720.0,0.26994822]
[1762709947893,0.64982597,103730.0,103720.0,0.35133638]
[1762709948096,0.64982597,103730.0,103720.0,0.40342551]
[1762709948588,0.64982597,103730.0,103720.0,0.35133638]
[1762709952509,0.64982597,103730.0,103720.0,0.09212376]
[1762709952796,0.29443597,103730.0,103720.0,0.16060192]
[1762709952991,0.65523597,103730.0,103720.0,0.16060192]
[1762709953190,0.64982597,103730.0,103720.0,0.35133638]
[1762709954595,0.64982597,103730.0,103720.0,0.40342551]
[1762709958492,0.64982597,103730.0,103720.0,0.30698921]
[1762709958689,0.64982597,103730.0,103720.0,0.24064919]
[1762709958886,0.64982597,103730.0,103720.0,0.40342551]
[1762709966692,0.64982597,103730.0,103720.0,0.03587376]
[1762709966693,0.73662413,103730.0,103720.0,0.03587376]
[1762709966997,0.37582413,103730.0,103720.0,0.00114489]
[1762709967186,1.09742413,103730.0,103720.0,0.00114489]
[1762709967790,1.15100299,103730.0,103720.0,0.00114489]
[1762709968694,1.18764,103730.0,103720.0,0.00014489]
[1762709970799,1.15300299,103730.0,103720.0,0.00014489]
[1762709971301,1.07161483,103730.0,103720.0,0.00014489]
[1762709971601,1.15300299,103730.0,103720.0,0.00014489]
[1762709974399,1.18764,103730.0,103720.0,0.00014489]
[1762709979395,1.20895173,103730.0,103720.0,0.00014489]
[1762709980604,1.26090725,103730.0,103720.0,0.00014489]
[1762709981007,0.1413055,103710.0,103700.0,0.05864]
[1762709981207,0.52351783,103710.0,103700.0,0.22141632]
[1762709981409,0.66782467,103710.0,103700.0,0.22141632]
[1762709982297,0.66782467,103710.0,103700.0,0.02345]
[1762709982298,0.76220283,103710.0,103700.0,0.02345]
[1762709982498,0.68081467,103710.0,103700.0,0.08238816]
[1762709982808,0.68081467,103710.0,103700.0,0.12685816]
[1762709983811,0.68081467,103710.0,103700.0,0.12585816]
[1762709984004,0.68181467,103710.0,103700.0,0.12585816]
[1762709984607,0.68181467,103710.0,103700.0,0.22231306]
[1762709984810,0.68181467,103710.0,103700.0,0.12585816]
[1762709989211,0.1403948,103700.0,103690.0,0.20881719]
[1762709989411,0.1403948,103700.0,103690.0,0.29020535]
[1762709989604,0.28489598,103700.0,103690.0,0.29020535]
[1762709990405,0.28489598,103700.0,103690.0,0.29120535]
[1762709991510,0.28489598,103700.0,103690.0,0.19474385]
[1762709991705,0.28489598,103700.0,103690.0,0.29120825]
[1762709993118,0.18844118,103700.0,103690.0,0.29120825]
[1762709993311,0.28489628,103700.0,103690.0,0.29120825]
[1762709995011,0.30621559,103700.0,103690.0,0.23911912]
[1762709995411,0.30621559,103700.0,103690.0,0.29120825]
[1762710003919,0.30623399,103700.0,103690.0,0.29120825]
[1762710004521,0.28489628,103700.0,103690.0,0.29120825]
[1762710005020,0.28489628,103700.0,103690.0,0.31839601]
[1762710007419,0.30623924,103700.0,103690.0,0.31839601]
[1762710019922,0.30622725,103700.0,103690.0,0.31839601]
[1762710021221,0.20977215,103700.0,103690.0,0.31839601]
[1762710021426,0.26228735,103700.0,103690.0,0.31839601]
[1762710021622,0.30757735,103700.0,103690.0,0.11335569]
[1762710021811,0.30757735,103700.0,103690.0,0.22193161]
[1762710022017,0.30757735,103700.0,103690.0,0.31839611]
[1762710022526,0.21112215,103700.0,103690.0,0.31839611]
[1762710023323,0.21112215,103700.0,103690.0,0.46579611]
[1762710024421,0.30757725,103700.0,103690.0,0.41370698]
[1762710024624,0.21112215,103700.0,103690.0,0.41370698]
[1762710024930,0.18860215,103700.0,103690.0,0.41370698]
[1762710025823,0.21112215,103700.0,103690.0,0.41370698]
[1762710026022,0.30757735,103700.0,103690.0,0.41370698]
[1762710028837,0.21112215,103700.0,103690.0,0.41370698]
[1762710029326,0.30757735,103700.0,103690.0,0.41370698]
[1762710030329,0.30757735,103700.0,103690.0,0.46579611]
[1762710036236,0.30757735,103700.0,103690.0,0.26075569]
[1762710036438,0.67906735,103700.0,103690.0,0.26075569]
[1762710036640,0.57192215,103700.0,103690.0,0.35721989]
[1762710036842,0.57192215,103700.0,103690.0,0.46579581]
[1762710037343,0.18779215,103700.0,103690.0,0.46579581]
[1762710037545,0.21099215,103700.0,103690.0,0.46579581]
[1762710037740,0.02133097,103700.0,103690.0,0.46579581]
[1762710038041,0.02133097,103700.0,103690.0,0.82659581]
[1762710038744,0.04329097,103700.0,103690.0,0.82659581]
[1762710039440,0.07718097,103700.0,103690.0,0.20058569]
[1762710039644,0.78826969,103700.0,103690.0,0.07649569]
[1762710039832,0.31889377,103700.0,103690.0,0.04719656]
[1762710040238,0.35353078,103700.0,103690.0,0.04719656]
[1762710040555,0.57254887,103700.0,103690.0,0.26594668]
[1762710040735,0.4060606,103710.0,103700.0,0.1562649]
[1762710040942,0.4060606,103710.0,103700.0,0.31692995]
[1762710040943,0.02133116,103710.0,103700.0,0.31692995]
[1762710041251,0.02133116,103710.0,103700.0,0.55800995]
[1762710041642,0.04329116,103710.0,103700.0,0.31692995]
[1762710041848,0.04429116,103710.0,103700.0,0.31692995]
[1762710042039,0.06749116,103710.0,103700.0,0.11189913]
[1762710042242,0.06748109,103710.0,103700.0,0.31692995]
[1762710042441,0.0462606,103710.0,103700.0,0.31692995]
[1762710042636,0.16392604,103710.0,103700.0,0.22047505]
[1762710042846,0.16392604,103710.0,103700.0,0.31692995]
[1762710042847,0.06748044,103710.0,103700.0,0.31692995]
[1762710043248,0.0230606,103710.0,103700.0,0.31692995]
[1762710044449,0.04427382,103710.0,103700.0,0.31692995]
[1762710044644,0.06027382,103710.0,103700.0,0.31692995]
[1762710045143,0.17991942,103710.0,103700.0,0.20835403]
[1762710045344,0.17991942,103710.0,103700.0,0.31692995]
[1762710046151,0.1587062,103710.0,103700.0,0.20835403]
[1762710046351,0.1587062,103710.0,103700.0,0.31692995]
[1762710046739,0.0171006,103710.0,103700.0,0.46432995]
[1762710046951,0.00014489,103720.0,103710.0,0.1540356]
[1762710047145,0.00014489,103720.0,103710.0,0.62341152]
[1762710047340,0.40403,103740.0,103730.0,0.153917]
[1762710047550,0.0212051,103740.0,103730.0,0.26249292]
[1762710047756,0.40403,103750.0,103740.0,0.1540077]
[1762710048052,0.569868,103750.0,103740.0,0.26258362]
[1762710048448,0.209068,103750.0,103740.0,0.26258362]
[1762710049146,0.00206119,103750.0,103740.0,0.62338362]
[1762710049344,0.00206119,103750.0,103740.0,0.86434362]
[1762710049541,0.04529119,103750.0,103740.0,0.62338362]
[1762710049747,0.06129119,103750.0,103740.0,0.67547275]
[1762710050146,0.04529119,103750.0,103740.0,0.62338362]
[1762710050351,0.06129119,103750.0,103740.0,0.62338362]
[1762710050747,0.29951581,103750.0,103740.0,0.04362]
[1762710050952,0.67331581,103750.0,103740.0,0.02343]
[1762710051152,0.67331581,103750.0,103740.0,0.04562]
[1762710051961,0.67331581,103750.0,103740.0,0.17016592]
[1762710052454,0.67431581,103750.0,103740.0,0.17016592]
[1762710052659,0.67431581,103750.0,103740.0,0.16816592]
[1762710052848,0.65831581,103750.0,103740.0,0.16616592]
[1762710053052,0.67431581,103750.0,103740.0,0.16716592]
[1762710053657,0.69544133,103750.0,103740.0,0.001]
[1762710053956,1.40401725,103750.0,103740.0,0.001]
[1762710054659,0.1517377,103740.0,103730.0,0.00014489]
[1762710054958,0.65747459,103740.0,103730.0,0.00014489]
[1762710055664,0.65747459,103740.0,103730.0,0.02157489]
[1762710055848,0.65747459,103740.0,103730.0,0.02257489]
[1762710056045,0.67347459,103740.0,103730.0,0.02457489]
[1762710056645,0.67347459,103740.0,103730.0,0.26475781]
[1762710056646,0.66138459,103740.0,103730.0,0.26475781]
[1762710056846,0.30058459,103740.0,103730.0,0.26475781]
[1762710057057,0.18816689,103740.0,103730.0,0.26275781]
[1762710057259,0.20616689,103740.0,103730.0,0.26375781]
[1762710057852,0.30258459,103740.0,103730.0,0.26375781]
[1762710058053,0.30058459,103740.0,103730.0,0.26375781]
[1762710059158,0.18816689,103740.0,103730.0,0.26175781]
[1762710059355,0.30058459,103740.0,103730.0,0.26375781]
[1762710060563,0.016,103740.0,103730.0,0.62455781]
[1762710061461,0.016,103740.0,103730.0,0.86555781]
[1762710061658,0.016,103740.0,103730.0,0.62455781]
[1762710061858,0.016,103740.0,103730.0,1.01295781]
[1762710062756,0.03891,103740.0,103730.0,0.90438189]
[1762710062951,0.1575577,103740.0,103730.0,0.77195781]
[1762710064661,0.1707477,103740.0,103730.0,0.77195781]
[1762710064963,0.1707477,103740.0,103730.0,0.74475473]
[1762710065553,0.1575577,103740.0,103730.0,0.74475473]
[1762710066657,0.1575577,103740.0,103730.0,0.56695489]
[1762710066862,0.1575577,103740.0,103730.0,0.38395473]
[1762710066863,0.3018757,103740.0,103730.0,0.38395473]
[1762710067361,0.3018757,103740.0,103730.0,0.23655473]
[1762710067666,0.3150657,103740.0,103730.0,0.12713773]
[1762710067860,0.75723854,103740.0,103730.0,0.00214489]
[1762710069065,0.77840951,103740.0,103730.0,0.00214489]
[1762710074461,0.81304652,103740.0,103730.0,0.00214489]
[1762710075163,0.1546663,103720.0,103710.0,0.3608]
[1762710075365,0.1547756,103710.0,103700.0,0.04425]
[1762710075565,0.53674657,103710.0,103700.0,0.21998568]
[1762710075866,0.68067953,103710.0,103700.0,0.21998568]
[1762710076967,0.68067953,103710.0,103700.0,0.13961284]
[1762710076968,0.69667953,103710.0,103700.0,0.13961284]
[1762710077163,0.69667953,103710.0,103700.0,0.22098568]
[1762710077357,0.69667953,103710.0,103700.0,0.13961284]
[1762710077557,0.69667953,103710.0,103700.0,0.12662284]
[1762710078470,0.69667953,103710.0,103700.0,0.001]
[1762710078670,0.69667953,103710.0,103700.0,0.02243]
[1762710078864,0.69667953,103710.0,103700.0,0.001]
[1762710079070,0.77805237,103710.0,103700.0,0.001]
[1762710080573,0.81268938,103710.0,103700.0,0.001]
[1762710084664,0.1493842,103690.0,103680.0,6.989e-05]
[1762710084864,0.02291,103660.0,103650.0,0.5145375]
[1762710085069,0.02291,103670.0,103660.0,0.1537321]
[1762710085378,0.64707042,103680.0,103670.0,0.05724]
[1762710085567,0.5024192,103680.0,103670.0,0.05724]
[1762710085770,0.50253562,103680.0,103670.0,0.13861284]
[1762710085972,0.64718684,103680.0,103670.0,0.13861284]
[1762710086176,0.65806684,103680.0,103670.0,0.12562284]
[1762710086375,0.65806684,103680.0,103670.0,0.04425]
[1762710086679,0.75243968,103680.0,103670.0,0.02143]
[1762710086900,0.75243968,103680.0,103670.0,0.02243]
[1762710087179,0.75243968,103680.0,103670.0,0.04536]
[1762710088576,0.75243968,103680.0,103670.0,0.12673284]
[1762710088773,0.67106684,103680.0,103670.0,0.14029284]
[1762710090275,0.67106684,103680.0,103670.0,0.23677564]
[1762710090473,0.20290764,103680.0,103670.0,0.23677564]
[1762710090780,0.31198114,103680.0,103670.0,0.04639]
[1762710091078,0.7764693,103680.0,103670.0,0.02346]
[1762710091574,0.7764693,103680.0,103670.0,0.04639]
[1762710092080,0.7764693,103680.0,103670.0,0.12776284]
[1762710092081,0.69509646,103680.0,103670.0,0.12776284]
[1762710094881,0.69509646,103680.0,103670.0,0.04639]
[1762710095877,0.65972114,103680.0,103670.0,0.1872654]
[1762710096181,0.20244764,103680.0,103670.0,0.6445482]
[1762710096382,0.29892114,103680.0,103670.0,0.6445482]
[1762710096974,0.67278114,103680.0,103670.0,0.001]
[1762710097176,0.69511774,103680.0,103670.0,0.001]
[1762710097681,0.67278114,103680.0,103670.0,0.001]
[1762710098274,0.69512426,103680.0,103670.0,0.001]
[1762710099681,0.1470321,103660.0,103650.0,0.04539]
[1762710099879,0.5078321,103660.0,103650.0,0.04539]
[1762710100079,0.65184916,103660.0,103650.0,0.04539]
[1762710100686,0.66684916,103660.0,103650.0,0.04539]
[1762710100884,0.67284916,103660.0,103650.0,0.04539]
[1762710101086,0.0965014,103650.0,103640.0,0.3608]
[1762710101280,0.51444996,103650.0,103640.0,0.02246]
[1762710101479,0.68170766,103650.0,103640.0,0.04539]
[1762710101683,0.1405207,103640.0,103630.0,0.05895]
[1762710101896,0.1405207,103640.0,103620.0,0.47096972]
[1762710101897,0.15359,103630.0,103620.0,0.41983682]
[1762710102184,0.65845297,103630.0,103620.0,0.04547682]
[1762710103290,0.65845297,103630.0,103620.0,0.02254682]
[1762710103685,0.65845297,103630.0,103620.0,8.682e-05]
[1762710104188,0.67945297,103630.0,103620.0,0.00108682]
[1762710104982,0.67945297,103630.0,103620.0,0.09761612]
[1762710105186,0.67945297,103630.0,103620.0,0.12007612]
[1762710105489,0.70181198,103630.0,103620.0,0.12007612]
[1762710106085,0.70181198,103630.0,103620.0,0.14300612]
[1762710106086,0.60529198,103630.0,103620.0,0.14300612]
[1762710106281,0.56987297,103630.0,103620.0,0.28388152]
[1762710106678,0.20907297,103630.0,103620.0,0.64468152]
[1762710106885,0.0211249,103630.0,103620.0,0.64468152]
[1762710108085,0.0211249,103630.0,103620.0,1.39208152]
[1762710108388,0.0211249,103630.0,103620.0,1.63332152]
[1762710108694,0.0435749,103630.0,103620.0,1.39208152]
[1762710109286,0.0211249,103630.0,103620.0,1.39208152]
[1762710112193,0.1622849,103630.0,103620.0,0.79208152]
[1762710112494,0.1622849,103630.0,103620.0,0.66476612]
[1762710112696,0.30642165,103630.0,103620.0,0.66476612]
[1762710113493,0.20990165,103630.0,103620.0,0.66476612]
[1762710114098,0.31948165,103630.0,103620.0,0.51736612]
[1762710115100,0.31948165,103630.0,103620.0,0.15656612]
[1762710115393,0.34187563,103630.0,103620.0,0.04647682]
[1762710115597,0.34187563,103630.0,103620.0,0.00108682]
[1762710116399,0.34187563,103630.0,103620.0,0.02262682]
[1762710116597,0.34187563,103630.0,103620.0,0.11915612]
[1762710116794,0.33587563,103630.0,103620.0,0.12015612]
[1762710117301,0.68867563,103630.0,103620.0,0.02362682]
[1762710117489,0.68867563,103630.0,103620.0,0.00208682]
[1762710117894,0.81599103,103630.0,103620.0,0.00208682]
[1762710118295,0.68867563,103630.0,103620.0,0.00208682]
[1762710118800,0.68967563,103630.0,103620.0,0.00308682]
[1762710120293,0.85162804,103630.0,103620.0,0.00308682]
[1762710121497,0.72431264,103630.0,103620.0,0.04816682]
[1762710121698,0.008,103630.0,103620.0,1.48790152]
[1762710121901,0.41290041,103650.0,103620.0,1.48790152]
[1762710121902,0.05917489,103650.0,103640.0,0.05864]
[1762710122103,0.15567629,103650.0,103640.0,0.1415907]
[1762710122398,0.30076363,103650.0,103640.0,0.1415907]
[1762710122597,0.66156363,103650.0,103640.0,0.1415907]
[1762710122800,0.20426223,103650.0,103640.0,0.1415907]
[1762710122997,0.20526223,103650.0,103640.0,0.1554407]
[1762710123300,0.20526223,103650.0,103640.0,0.5162407]
[1762710124103,0.31176363,103650.0,103640.0,0.5162407]
[1762710124302,0.31176363,103650.0,103640.0,0.5023907]
[1762710124600,0.67256363,103650.0,103640.0,0.04508]
[1762710124906,0.67256363,103650.0,103640.0,0.1415907]
[1762710125394,0.67256363,103650.0,103630.0,0.04508]
[1762710125395,0.1555481,103640.0,103630.0,0.04508]
[1762710125701,0.1555481,103640.0,103620.0,0.37473682]
[1762710125702,0.15555,103630.0,103620.0,8.682e-05]
[1762710126002,0.661811,103630.0,103620.0,8.682e-05]
[1762710126802,0.661811,103630.0,103620.0,0.09661622]
[1762710127205,0.661811,103630.0,103620.0,8.682e-05]
[1762710127403,0.666811,103630.0,103620.0,8.682e-05]
[1762710128312,0.666811,103630.0,103620.0,0.09861622]
[1762710129207,0.666811,103630.0,103620.0,0.00208682]
[1762710130195,0.85908438,103630.0,103620.0,0.00208682]
[1762710130395,0.1555687,103610.0,103600.0,0.1416205]
[1762710130805,0.29938826,103610.0,103600.0,0.1416205]
[1762710131005,0.20284956,103610.0,103600.0,0.1416205]
[1762710131303,0.20292145,103610.0,103600.0,0.5162705]
[1762710131504,0.29946015,103610.0,103600.0,0.5162705]
[1762710131705,0.30446015,103610.0,103600.0,0.5162705]
[1762710131907,0.31746015,103610.0,103600.0,0.5162705]
[1762710132202,0.31746015,103610.0,103600.0,0.5024205]
[1762710132408,0.31746015,103610.0,103600.0,0.141628]
[1762710133405,0.29427831,103610.0,103600.0,0.141628]
[1762710136804,0.18496961,103610.0,103600.0,0.155478]
[1762710137102,0.28150821,103610.0,103600.0,0.516278]
[1762710137507,0.29427821,103610.0,103600.0,0.516278]
[1762710137707,0.29427821,103610.0,103600.0,0.40588]
[1762710137910,0.29427821,103610.0,103600.0,0.04508]
[1762710138208,0.29427821,103610.0,103600.0,0.141628]
[1762710141299,0.27120005,103610.0,103600.0,0.141628]
[1762710141511,0.317356,103610.0,103600.0,0.155478]
[1762710145111,0.304586,103610.0,103600.0,0.155478]
[1762710147213,0.304586,103610.0,103600.0,0.04508]
[1762710147413,0.304586,103610.0,103600.0,0.05795]
[1762710147715,0.304586,103610.0,103600.0,0.154498]
[1762710149215,0.2080474,103610.0,103600.0,0.154498]
[1762710149517,0.18486495,103610.0,103600.0,0.154498]
[1762710150216,0.28140385,103610.0,103600.0,0.154498]
[1762710150611,0.18486495,103610.0,103600.0,0.154498]
[1762710150814,0.16191495,103610.0,103600.0,0.515298]
[1762710151013,0.13860495,103610.0,103600.0,0.515298]
[1762710154718,0.16076256,103610.0,103600.0,0.515298]
[1762710157111,0.20369256,103610.0,103600.0,0.515298]
[1762710157314,0.11629591,103600.0,103590.0,0.1370897]
[1762710157514,0.14827352,103600.0,103590.0,0.2336472]
[1762710157819,0.2922884,103600.0,103590.0,0.1554775]
[1762710158610,0.2972884,103600.0,103590.0,0.1564775]
[1762710159011,0.2972884,103600.0,103590.0,0.05992]
[1762710159212,0.3102884,103600.0,103590.0,0.1564775]
[1762710159412,0.6710884,103600.0,103590.0,0.05992]
[1762710159617,0.6710884,103600.0,103590.0,0.001]
[1762710160617,0.1162068,103580.0,103570.0,0.1554962]
[1762710160823,0.1381172,103580.0,103570.0,0.1554962]
[1762710161021,0.2823344,103580.0,103570.0,0.05892]
[1762710161419,0.2823344,103580.0,103570.0,0.1554961]
[1762710162022,0.2863344,103580.0,103570.0,0.1564961]
[1762710162225,0.2993344,103580.0,103570.0,0.1564961]
[1762710163514,0.1929476,103580.0,103570.0,0.1564961]
[1762710163713,0.1929476,103580.0,103570.0,0.5172961]
[1762710164219,0.17112875,103580.0,103570.0,0.5172961]
[1762710164720,0.27751555,103580.0,103570.0,0.5172961]
[1762710165323,0.18094875,103580.0,103570.0,0.5172961]
[1762710165623,0.16130875,103580.0,103570.0,0.5172961]
[1762710165818,1.55e-06,103580.0,103570.0,0.95092948]
[1762710166222,1.55e-06,103580.0,103570.0,0.70956948]
[1762710166923,1.55e-06,103580.0,103570.0,0.95092948]
[1762710168623,1.55e-06,103580.0,103570.0,0.77905097]
[1762710169533,0.02108,103610.0,103600.0,0.1556682]
[1762710170025,0.1654568,103610.0,103600.0,0.1556682]
[1762710170229,0.18723228,103610.0,103600.0,0.1556682]
[1762710170431,0.1654568,103610.0,103600.0,0.1556682]
[1762710170627,0.1654568,103610.0,103600.0,0.1586682]
[1762710170828,0.18723216,103610.0,103600.0,0.1586682]
[1762710171130,0.21007216,103610.0,103600.0,0.1586682]
[1762710171330,0.21107216,103610.0,103600.0,0.1586682]
[1762710171929,0.30761106,103610.0,103600.0,0.1586682]
[1762710172323,0.2858357,103610.0,103600.0,0.1586682]
[1762710172627,0.30761199,103610.0,103600.0,0.1586682]
[1762710172828,0.2858357,103610.0,103600.0,0.1586682]
[1762710173731,0.2858357,103610.0,103590.0,0.00014489]
[1762710173732,0.1445582,103600.0,103590.0,0.00014489]
[1762710173933,0.16224312,103600.0,103590.0,0.42006489]
[1762710174131,0.28504528,103600.0,103590.0,0.51662239]
[1762710174632,0.30682146,103600.0,103590.0,0.51662239]
[1762710174934,0.30782146,103600.0,103590.0,0.51662239]
[1762710175616,0.30782146,103600.0,103590.0,0.51962239]
[1762710176121,0.28604528,103600.0,103590.0,0.51962239]
[1762710177133,0.64684528,103600.0,103590.0,0.06226489]
[1762710177334,0.66862577,103600.0,103590.0,0.06226489]
[1762710177732,0.66862577,103600.0,103590.0,0.15882239]
[1762710181931,0.66862577,103600.0,103590.0,0.15786239]
[1762710182441,0.66862577,103600.0,103590.0,0.06130489]
[1762710182835,0.66862577,103600.0,103590.0,0.15786239]
[1762710183235,0.66862577,103600.0,103590.0,0.06130489]
[1762710183946,0.66862577,103600.0,103590.0,0.15786239]
[1762710184542,0.66862577,103600.0,103590.0,0.00314489]
[1762710184543,0.67512577,103600.0,103590.0,0.00314489]
[1762710186641,0.1408968,103580.0,103570.0,0.5162447]
[1762710186837,0.1409061,103570.0,103560.0,0.12835149]
[1762710187037,0.1409061,103570.0,103550.0,0.47056955]
[1762710187038,0.1474155,103560.0,103550.0,0.00010255]
[1762710187342,0.28583394,103560.0,103550.0,0.05870255]
[1762710187535,0.307639,103560.0,103550.0,0.05870255]
[1762710187735,0.307639,103560.0,103550.0,0.15529735]
[1762710188539,0.308639,103560.0,103550.0,0.15729735]
[1762710189034,0.2120535,103560.0,103550.0,0.15729735]
[1762710189239,0.14591844,103560.0,103550.0,0.64569433]
[1762710189742,0.19024844,103560.0,103550.0,0.64569433]
[1762710190735,0.14591844,103560.0,103550.0,0.64569433]
[1762710191233,0.16761844,103560.0,103550.0,0.64569433]
[1762710191434,0.001,103560.0,103550.0,0.64569433]
[1762710193848,0.00014489,103570.0,103560.0,0.1551855]
[1762710194048,0.00014489,103570.0,103560.0,0.64358248]
[1762710194238,0.14575345,103570.0,103560.0,0.64358248]
[1762710194546,0.00014489,103570.0,103560.0,0.64358248]
[1762710195245,0.00214489,103570.0,103560.0,0.71937993]
[1762710196645,0.00214489,103570.0,103560.0,0.72237993]
[1762710201648,0.04647489,103570.0,103560.0,0.59478295]
[1762710201840,0.14305099,103570.0,103560.0,0.5189855]
[1762710202041,0.28812755,103570.0,103560.0,0.5189855]
[1762710202651,0.28812755,103570.0,103560.0,0.1581855]
[1762710207754,0.64892755,103570.0,103560.0,0.1581855]
[1762710208451,0.28812755,103570.0,103560.0,0.1581855]
[1762710208754,0.19155145,103570.0,103560.0,0.1581855]
[1762710209158,0.19155145,103570.0,103560.0,0.23616161]
[1762710209456,0.28812735,103570.0,103560.0,0.23616161]
[1762710209858,0.19155145,103570.0,103560.0,0.23616161]
[1762710210251,0.19155145,103570.0,103560.0,0.59696161]
[1762710210649,0.28812735,103570.0,103560.0,0.59696161]
[1762710211560,0.19155145,103570.0,103560.0,0.59696161]
[1762710212844,0.19155145,103570.0,103560.0,0.67860261]
[1762710213358,0.28812745,103570.0,103560.0,0.67860261]
[1762710213856,0.081641,103580.0,103570.0,0.05798]
[1762710214059,0.10335082,103580.0,103570.0,0.41878]
[1762710214357,0.24863328,103580.0,103570.0,0.41878]
[1762710214957,0.34520838,103580.0,103570.0,0.515356]
[1762710215953,0.34620838,103580.0,103570.0,0.42178]
[1762710217454,0.34620838,103580.0,103570.0,0.518356]
[1762710217946,0.081641,103580.0,103570.0,0.518356]
[1762710218151,0.22565747,103580.0,103570.0,0.518356]
[1762710219459,0.32223257,103580.0,103570.0,0.518356]
[1762710227261,0.14401647,103580.0,103570.0,0.599997]
[1762710227464,0.24058307,103580.0,103570.0,0.599997]